bitfinex/quotes_SOLUSD_20240824
["timestamp","ask_amount","ask_price","bid_price","bid_amount"]
[1724498022734,15.9173,158.49,158.46,20.85027643]
[1724498024539,15.9173,158.49,158.44,21.10108762]
[1724498025225,15.9173,158.49,158.45,1.57955552]
[1724498025413,0.849621,158.51,158.46,1.10102435]
[1724498025732,0.849621,158.51,158.46,21.10102435]
[1724498026315,0.849621,158.51,158.47,25.39774965]
[1724498026614,0.849621,158.51,158.48,20.25098]
[1724498026833,0.849621,158.51,158.49,0.84948393]
[1724498027542,0.849621,158.51,158.48,20.25098]
[1724498027543,0.849621,158.51,158.48,20.0]
[1724498027743,0.849621,158.51,158.48,20.84949411]
[1724498028344,0.849621,158.51,158.48,20.0]
[1724498029558,0.849621,158.51,158.49,0.84953458]
[1724498030419,0.849621,158.51,158.49,1.57935933]
[1724498031312,0.849621,158.51,158.5,0.84935081]
[1724498031630,0.849621,158.51,158.5,0.25098]
[1724498031828,0.849621,158.51,158.5,20.25098]
[1724498032048,0.849621,158.51,158.5,21.83030589]
[1724498033617,0.849621,158.51,158.5,22.67918878]
[1724498034414,0.849621,158.51,158.5,47.14624123]
[1724498034615,0.849621,158.51,158.5,44.71803245]
[1724498034818,0.849621,158.51,158.5,46.29698861]
[1724498036047,15.5789,158.59,158.54,24.46705245]
[1724498036247,15.5789,158.59,158.55,21.57895616]
[1724498036431,15.5789,158.59,158.55,20.0]
[1724498037637,1.57658307,158.58,158.55,20.0]
[1724498037820,17.15558256,158.59,158.53,20.0]
[1724498038022,45.0,158.58,158.53,20.0]
[1724498038218,45.0,158.58,158.5,32.26650534]
[1724498038219,1.57692415,158.57,158.51,20.0]
[1724498038635,1.57692415,158.57,158.52,1.57914266]
[1724498038831,1.57692415,158.57,158.51,20.0]
[1724498038832,45.0,158.58,158.51,20.0]
[1724498039123,23.4615321,158.59,158.52,1.57917138]
[1724498039326,17.1557321,158.59,158.53,1.57917138]
[1724498039629,15.5789,158.59,158.53,20.8484151]
[1724498039824,15.5789,158.59,158.54,1.57903601]
[1724498040021,15.5789,158.59,158.53,20.8484151]
[1724498040221,15.5789,158.59,158.54,1.57903582]
[1724498040440,15.5789,158.59,158.53,20.8484151]
[1724498040820,1.35904052,158.58,158.53,20.0]
[1724498041024,15.5789,158.59,158.53,20.84859617]
[1724498042354,15.5789,158.59,158.53,20.0]
[1724498042848,1.57678479,158.58,158.47,8.28816821]
[1724498043024,15.5789,158.56,158.48,1.5791708]
[1724498043224,1.57716309,158.55,158.49,1.57949683]
[1724498043446,1.57715755,158.54,158.47,24.46705245]
[1724498043644,1.57715755,158.54,158.48,1.57944099]
[1724498043952,1.57715755,158.54,158.47,24.46705245]
[1724498043953,1.57715755,158.54,158.49,1.57944099]
[1724498044250,1.57715755,158.54,158.48,21.57944099]
[1724498044457,1.57716237,158.55,158.48,20.0]
[1724498044754,1.57716241,158.54,158.48,20.0]
[1724498045525,1.57714352,158.55,158.48,20.0]
[1724498045739,1.5771467,158.54,158.48,20.0]
[1724498046855,7.8847467,158.54,158.46,20.0]
[1724498047046,7.8847467,158.54,158.47,1.57947605]
[1724498047557,7.8847467,158.54,158.46,20.0]
[1724498048349,6.2328,158.55,158.46,20.84992888]
[1724498048538,45.0,158.54,158.47,1.57945791]
[1724498048741,1.57748028,158.53,158.47,1.57945791]
[1724498049262,1.57748028,158.53,158.46,20.0]
[1724498050063,51.3075,158.54,158.46,20.0]
[1724498050558,45.0,158.54,158.47,1.57951587]
[1724498050964,1.57748026,158.53,158.46,20.0]
[1724498051172,45.0,158.54,158.46,20.0]
[1724498051346,51.3076,158.54,158.47,1.57951353]
[1724498051535,51.3076,158.54,158.45,24.46705245]
[1724498051536,1.57748093,158.53,158.45,24.46705245]
[1724498051742,15.6297,158.52,158.46,1.57953779]
[1724498051942,1.57759151,158.51,158.47,1.57953779]
[1724498052261,46.57759151,158.51,158.43,24.46705245]
[1724498054152,46.57759151,158.51,158.44,20.0]
[1724498056057,45.0,158.51,158.44,20.0]
[1724498056270,6.2328,158.49,158.44,20.0]
[1724498056438,15.6297,158.47,158.4,6.99062782]
[1724498056638,1.57789569,158.46,158.41,13.37784976]
[1724498056840,1.57789569,158.46,158.41,9.80200483]
[1724498057146,17.20770901,158.47,158.41,9.80200483]
[1724498058063,15.6297,158.47,158.41,9.80200483]
[1724498058302,15.6297,158.47,158.43,9.80200483]
[1724498058497,15.6297,158.47,158.44,20.0]
[1724498059686,15.6297,158.47,158.43,9.80200483]
[1724498059891,15.6297,158.47,158.44,20.0]
[1724498062008,15.6297,158.47,158.43,9.80200483]
[1724498062164,15.6297,158.47,158.44,20.0]
[1724498068384,15.6297,158.47,158.44,20.0]
[1724498082318,15.6297,158.47,158.45,4.72612331]
[1724498083218,15.6297,158.47,158.44,20.0]
[1724498083391,15.6297,158.47,158.45,4.72634482]
[1724498084012,15.6297,158.47,158.44,20.0]
[1724498084187,15.6297,158.47,158.42,20.0]
[1724498084393,15.6297,158.47,158.43,4.72788836]
[1724498084820,1.57787794,158.46,158.43,4.72788836]
[1724498086217,15.6297,158.47,158.43,4.72788836]
[1724498086218,17.2076864,158.47,158.43,4.72788836]
[1724498086906,17.2076864,158.47,158.44,4.72788836]
[1724498087121,17.2076864,158.47,158.42,20.0]
[1724498087589,17.2076864,158.47,158.43,4.72837268]
[1724498088415,17.2076864,158.47,158.42,20.0]
[1724498088619,17.2076864,158.47,158.43,4.72781286]
[1724498088824,17.2076864,158.47,158.44,4.72771658]
[1724498089025,17.2076864,158.47,158.43,4.72785437]
[1724498089344,17.2076864,158.47,158.42,20.0]
[1724498089503,17.2076864,158.47,158.43,4.72787631]
[1724498089704,17.2076864,158.47,158.42,20.0]
[1724498090016,17.2076864,158.47,158.43,4.72787631]
[1724498090217,17.2076864,158.47,158.44,4.72787631]
[1724498090412,15.6297,158.47,158.43,9.80200483]
[1724498090620,15.6297,158.47,158.44,4.72622282]
[1724498090930,15.6297,158.47,158.43,9.80200483]
[1724498091109,15.6297,158.47,158.44,4.72625985]
[1724498091312,15.6297,158.47,158.45,4.72625985]
[1724498091521,15.6297,158.47,158.44,4.72625985]
[1724498091719,15.6297,158.47,158.45,4.72625985]
[1724498091926,15.6297,158.47,158.44,4.72625985]
[1724498092231,15.6297,158.47,158.45,4.72625985]
[1724498092416,15.6297,158.47,158.43,9.80200483]
[1724498092599,15.6297,158.47,158.44,4.72608391]
[1724498092803,15.6297,158.47,158.45,4.72608391]
[1724498093002,15.6297,158.47,158.43,9.80200483]
[1724498093226,15.6297,158.47,158.44,4.7261029]
[1724498093434,15.6297,158.47,158.45,4.7261029]
[1724498093733,15.6297,158.47,158.43,9.80200483]
[1724498093906,15.6297,158.47,158.44,4.726188]
[1724498094108,15.6297,158.47,158.43,9.80200483]
[1724498094109,15.6297,158.47,158.45,4.726188]
[1724498094312,15.6297,158.47,158.43,9.80200483]
[1724498094516,15.6297,158.47,158.44,4.72598717]
[1724498094706,15.6297,158.47,158.45,4.72598717]
[1724498094905,15.6297,158.47,158.43,9.80200483]
[1724498095131,15.6297,158.47,158.44,4.72662629]
[1724498095436,15.6297,158.47,158.45,4.72662629]
[1724498095734,15.6297,158.47,158.43,9.80200483]
[1724498095944,15.6297,158.47,158.44,4.72701712]
[1724498096237,15.6297,158.47,158.45,4.72701712]
[1724498096416,15.6297,158.47,158.43,9.80200483]
[1724498096618,15.6297,158.47,158.44,4.7266483]
[1724498096807,15.6297,158.47,158.45,4.7266483]
[1724498097010,15.6297,158.47,158.43,9.80200483]
[1724498097223,15.6297,158.47,158.44,4.7266483]
[1724498097410,15.6297,158.47,158.45,4.7266483]
[1724498097611,15.6297,158.47,158.43,9.80200483]
[1724498097813,15.6297,158.47,158.44,4.72712694]
[1724498098018,15.6297,158.47,158.45,4.72712694]
[1724498098310,15.6297,158.47,158.43,9.80200483]
[1724498098512,15.6297,158.47,158.44,4.72701504]
[1724498098713,15.6297,158.47,158.45,4.72701504]
[1724498099012,15.6297,158.47,158.43,9.80200483]
[1724498099211,15.6297,158.47,158.44,4.72701504]
[1724498099634,15.6297,158.47,158.43,9.80200483]
[1724498100536,15.6297,158.47,158.42,20.0]
[1724498100712,15.6297,158.47,158.43,20.0]
[1724498101041,17.20768218,158.47,158.43,20.0]
[1724498101410,15.6297,158.47,158.41,20.8511849]
[1724498105617,15.6297,158.47,158.42,9.80200483]
[1724498105924,15.6297,158.47,158.44,9.80200483]
[1724498108543,15.6297,158.47,158.41,20.0]
[1724498108841,15.6297,158.47,158.42,9.80200483]
[1724498109022,15.6297,158.47,158.43,20.0]
[1724498113042,15.6297,158.47,158.43,20.85103009]
[1724498114325,15.6297,158.47,158.44,9.80200483]
[1724498114521,15.6297,158.47,158.46,9.80200483]
[1724498114720,9.80200483,158.56,158.46,9.80200483]
[1724498114721,15.5854,158.51,158.46,9.80200483]
[1724498117432,15.5854,158.51,158.48,9.80200483]
[1724498119826,15.5854,158.56,158.5,9.80200483]
[1724498120329,1.577137,158.55,158.5,9.80200483]
[1724498121454,15.5854,158.56,158.5,9.80200483]
[1724498122129,15.5854,158.56,158.51,0.84928011]
[1724498122547,15.5854,158.56,158.51,20.84928011]
[1724498122738,15.5854,158.56,158.52,10.65095579]
[1724498122933,15.5854,158.6,158.52,10.65095579]
[1724498123153,21.8907,158.6,158.52,10.65095579]
[1724498123941,15.5854,158.6,158.52,10.65095579]
[1724498124333,15.5854,158.6,158.52,9.80200483]
[1724498124731,15.5854,158.6,158.53,0.84850358]
[1724498125857,1.57677759,158.59,158.52,9.80200483]
[1724498126047,15.5854,158.6,158.53,20.25098]
[1724498126363,17.1619909,158.6,158.53,20.25098]
[1724498126945,17.1619909,158.6,158.53,20.0]
[1724498127149,33.26929573,158.6,158.53,20.0]
[1724498127354,45.0,158.59,158.51,20.0]
[1724498127529,1.57686207,158.58,158.51,20.0]
[1724498127732,1.57686207,158.57,158.51,20.0]
[1724498128759,1.57686198,158.58,158.51,20.0]
[1724498130051,1.57686043,158.57,158.51,20.0]
[1724498131040,1.57685913,158.58,158.51,20.0]
[1724498131250,1.57685913,158.57,158.51,20.0]
[1724498131941,1.57685898,158.58,158.51,20.0]
[1724498132457,45.0,158.59,158.51,20.0]
[1724498132846,45.0,158.59,158.52,0.8487423]
[1724498134777,45.0,158.59,158.52,10.65074713]
[1724498134931,31.69270483,158.6,158.53,20.0]
[1724498135558,1.57673938,158.59,158.53,20.0]
[1724498136461,1.57673938,158.59,158.51,20.0]
[1724498137150,9.80200483,158.58,158.51,20.0]
[1724498137451,1.5768597,158.57,158.5,0.12549]
[1724498137663,1.5768597,158.57,158.5,0.25098]
[1724498138249,11.37886477,158.58,158.5,0.25098]
[1724498139643,1.57685994,158.58,158.51,9.80200483]
[1724498139855,1.57685994,158.58,158.52,20.0]
[1724498140760,45.0,158.59,158.52,20.0]
[1724498141633,1.57686136,158.58,158.52,20.0]
[1724498142738,1.57686136,158.58,158.51,9.80200483]
[1724498143463,45.0,158.59,158.51,9.80200483]
[1724498143661,25.38740483,158.6,158.52,0.84853436]
[1724498143963,1.57674766,158.59,158.51,9.80200483]
[1724498144548,25.38740483,158.6,158.52,0.84849358]
[1724498144858,15.5854,158.6,158.53,9.80200483]
[1724498145058,17.16204318,158.6,158.53,9.80200483]
[1724498145665,15.5854,158.6,158.54,0.84821224]
[1724498146046,15.5854,158.6,158.53,9.80200483]
[1724498146371,15.5854,158.6,158.54,0.84821204]
[1724498147073,15.5854,158.6,158.53,9.80200483]
[1724498147254,1.57659711,158.59,158.5,0.25098]
[1724498147459,1.57659711,158.59,158.51,0.12549]
[1724498147652,1.57659711,158.59,158.51,0.25098]
[1724498149079,46.57659711,158.59,158.5,9.80200483]
[1724498153382,9.80200483,158.58,158.49,9.92749483]
[1724498153580,1.5769439,158.57,158.49,9.92749483]
[1724498153960,1.5769439,158.57,158.49,9.80200483]
[1724498154279,1.5769439,158.57,158.48,8.28816821]
[1724498154485,9.80200483,158.54,158.46,6.77396115]
[1724498154778,25.40810483,158.52,158.43,263.60200483]
[1724498154982,16.32200483,158.5,158.41,9.80200483]
[1724498155277,1.57775286,158.49,158.4,18.09017304]
[1724498155587,1.57777506,158.48,158.41,8.28816821]
[1724498155886,1.57778604,158.49,158.41,8.28816821]
[1724498156179,1.5777827,158.48,158.41,8.28816821]
[1724498156784,15.6061,158.46,158.39,6.58192695]
[1724498156991,15.6061,158.46,158.38,18.09017304]
[1724498156992,1.57801226,158.45,158.38,18.09017304]
[1724498157563,1.57801226,158.45,158.38,8.28816821]
[1724498157762,9.80200483,158.44,158.36,6.58603841]
[1724498157959,1.5783522,158.43,158.33,24.43463874]
[1724498158362,1.5783522,158.43,158.33,18.09017304]
[1724498158570,1.5783522,158.43,158.34,8.28816821]
[1724498158981,1.5783522,158.43,158.35,9.80200483]
[1724498159181,45.0,158.45,158.35,9.80200483]
[1724498159382,1.57836233,158.44,158.37,9.80200483]
[1724498159969,1.57822085,158.44,158.37,9.80200483]
[1724498161985,15.6061,158.46,158.35,8.28816821]
[1724498162188,15.6061,158.46,158.43,9.80200483]
[1724498172286,15.6061,158.46,158.42,9.80200483]
[1724498172487,15.6061,158.46,158.41,9.80200483]
[1724498175815,15.6061,158.46,158.42,0.8509837]
[1724498176317,15.6061,158.46,158.43,9.92749483]
[1724498176610,15.6061,158.46,158.44,0.85058103]
[1724498177329,21.618,158.5,158.44,0.85058103]
[1724498177688,21.618,158.5,158.45,9.80200483]
[1724498177897,15.098,158.5,158.47,9.80200483]
[1724498178428,15.098,158.5,158.48,0.84992979]
[1724498178586,15.098,158.5,158.47,9.80200483]
[1724498179306,21.3723,158.54,158.47,9.80200483]
[1724498179616,21.3723,158.54,158.49,9.80200483]
[1724498180796,21.3723,158.54,158.5,0.84918185]
[1724498181319,15.098,158.54,158.49,9.80200483]
[1724498181610,15.098,158.54,158.5,0.25098]
[1724498182800,15.098,158.54,158.51,9.80200483]
[1724498183107,21.3723,158.58,158.51,9.80200483]
[1724498185009,1.57681366,158.57,158.5,0.12549]
[1724498185218,9.80200483,158.55,158.4,26.3444657]
[1724498185414,11.3792086,158.55,158.46,9.80200483]
[1724498186003,9.80200483,158.55,158.47,0.84955165]
[1724498187014,9.80200483,158.55,158.46,9.80200483]
[1724498187211,9.80200483,158.55,158.47,0.12549]
[1724498187409,9.80200483,158.55,158.47,0.97505794]
[1724498188214,11.37920932,158.55,158.47,0.12549]
[1724498190100,1.57720603,158.54,158.47,0.12549]
[1724498191325,15.0819,158.53,158.47,0.12549]
[1724498195204,15.0819,158.53,158.48,9.80200483]
[1724498195401,15.0819,158.53,158.47,0.12549]
[1724498195630,15.0819,158.53,158.48,9.80200483]
[1724498195827,15.0819,158.53,158.49,0.8493415]
[1724498196232,15.0819,158.53,158.48,9.80200483]
[1724498196411,15.0819,158.53,158.49,0.25098]
[1724498198619,15.0819,158.53,158.5,9.80200483]
[1724498199630,15.0819,158.53,158.51,0.25098]
[1724498200412,15.0819,158.53,158.51,0.12549]
[1724498200620,15.0819,158.53,158.5,0.25098]
[1724498200816,15.0819,158.53,158.47,9.80200483]
[1724498201029,15.0819,158.53,158.48,0.25098]
[1724498201223,15.0819,158.53,158.47,9.80200483]
[1724498201427,15.0819,158.53,158.49,9.80200483]
[1724498201641,15.0819,158.53,158.5,0.25098]
[1724498202020,15.0819,158.53,158.51,9.80200483]
[1724498202345,15.781,158.57,158.51,9.80200483]
[1724498202544,15.781,158.57,158.52,0.84853822]
[1724498202850,15.781,158.57,158.51,9.80200483]
[1724498203038,15.781,158.57,158.53,0.84853938]
[1724498204636,15.781,158.57,158.52,0.25098]
[1724498205220,15.781,158.57,158.51,45.25098]
[1724498205846,15.781,158.57,158.52,0.84816105]
[1724498206051,15.781,158.57,158.53,0.12549]
[1724498206849,15.781,158.57,158.52,0.12549]
[1724498207351,15.781,158.57,158.51,0.25098]
[1724498207917,15.781,158.57,158.51,46.09899069]
[1724498208631,15.781,158.57,158.52,9.80200483]
[1724498208834,15.781,158.57,158.53,0.25098]
[1724498209534,15.781,158.57,158.53,1.0990036]
[1724498209931,15.781,158.57,158.53,0.25098]
[1724498210734,15.781,158.57,158.53,0.12549]
[1724498211952,15.781,158.57,158.52,0.25098]
[1724498212168,25.58300483,158.57,158.52,0.12549]
[1724498212333,27.15982326,158.57,158.49,9.80200483]
[1724498212655,25.58300483,158.57,158.5,0.25098]
[1724498214762,25.58300483,158.57,158.49,45.25098]
[1724498216344,25.58300483,158.57,158.5,4.70909713]
[1724498216662,25.58300483,158.57,158.51,0.25098]
[1724498217838,27.15981176,158.57,158.51,0.25098]
[1724498219063,27.15981176,158.57,158.5,4.70909713]
[1724498219357,27.15981176,158.57,158.48,9.80200483]
[1724498219358,33.46621176,158.57,158.49,4.83458713]
[1724498219672,9.80200483,158.55,158.49,4.70909713]
[1724498219866,11.37898956,158.55,158.47,4.70909713]
[1724498220242,11.37898956,158.55,158.48,4.70909713]
[1724498220440,11.37898956,158.55,158.47,4.70909713]
[1724498220638,11.37898956,158.55,158.46,9.80200483]
[1724498220959,11.37898956,158.55,158.47,49.96225071]
[1724498221644,11.37898956,158.55,158.48,4.71127071]
[1724498221845,11.37898956,158.55,158.49,4.96225071]
[1724498222045,11.37898956,158.55,158.48,4.71127071]
[1724498222247,11.37898956,158.55,158.49,4.96225071]
[1724498222452,11.37898956,158.55,158.5,4.71127071]
[1724498222663,11.37898956,158.55,158.48,4.71127071]
[1724498222842,11.37898956,158.55,158.49,4.96225071]
[1724498223039,11.37898956,158.55,158.5,4.71127071]
[1724498223262,1.57698589,158.54,158.51,4.71127071]
[1724498223469,23.70268589,158.54,158.44,24.43463874]
[1724498223642,9.80200483,158.53,158.45,4.71698894]
[1724498223838,16.11000483,158.53,158.46,5.56690901]
[1724498224137,16.11000483,158.53,158.47,4.71698894]
[1724498224342,16.11000483,158.53,158.48,4.71698894]
[1724498224541,16.11000483,158.53,158.45,8.28816821]
[1724498224745,16.11000483,158.53,158.46,5.57002229]
[1724498224970,16.11000483,158.53,158.47,4.72010791]
[1724498225271,16.11000483,158.53,158.48,4.72010791]
[1724498225470,16.11000483,158.53,158.47,4.72010791]
[1724498225646,16.11000483,158.53,158.48,4.72010791]
[1724498225972,16.11000483,158.53,158.47,4.72010791]
[1724498226148,17.68734989,158.53,158.48,4.72010791]
[1724498226347,17.68734989,158.53,158.46,4.72010791]
[1724498226646,17.68734989,158.53,158.47,4.72010791]
[1724498226868,17.68734989,158.53,158.48,4.72010791]
[1724498227192,17.68734989,158.53,158.46,4.72010791]
[1724498227371,17.68735034,158.53,158.47,4.72010791]
[1724498227550,9.80200483,158.51,158.46,4.72010791]
[1724498227748,15.0186,158.49,158.42,4.72010791]
[1724498227951,15.0186,158.49,158.43,4.72010791]
[1724498228173,15.0186,158.49,158.4,8.14372376]
[1724498228174,24.82060483,158.49,158.4,8.14372376]
[1724498228378,6.4218,158.47,158.4,8.14372376]
[1724498229551,6.4218,158.47,158.41,10.65297714]
[1724498230762,6.4218,158.47,158.42,0.12549]
[1724498230968,6.4218,158.47,158.42,0.25098]
[1724498232380,6.4218,158.47,158.38,6.57705269]
[1724498232570,24.82060483,158.46,158.37,9.80200483]
[1724498232874,24.82060483,158.46,158.38,1.57988009]
[1724498233176,24.82060483,158.46,158.37,9.80200483]
[1724498233474,24.82060483,158.46,158.38,0.85157716]
[1724498233685,26.39864412,158.46,158.37,9.80200483]
[1724498233860,26.39864412,158.46,158.38,0.12549]
[1724498234858,26.39864412,158.46,158.38,0.25098]
[1724498235058,24.82060483,158.46,158.38,0.25098]
[1724498235565,15.0186,158.46,158.39,9.80200483]
[1724498235752,15.0186,158.46,158.4,1.1021048]
[1724498235955,15.0186,158.46,158.4,0.25098]
[1724498236881,16.59647677,158.46,158.38,17.49311193]
[1724498237180,15.0186,158.46,158.38,17.49311193]
[1724498237556,15.0186,158.46,158.39,0.85157386]
[1724498237964,16.59663999,158.46,158.38,17.49311193]
[1724498238585,15.0186,158.46,158.39,0.85157371]
[1724498239270,15.0186,158.46,158.38,17.49311193]
[1724498239902,1.5780389,158.45,158.38,7.6911071]
[1724498240102,1.5780389,158.45,158.37,9.92749483]
[1724498240397,15.0186,158.44,158.38,0.12549]
[1724498240582,15.0186,158.44,158.37,9.92749483]
[1724498241388,15.0186,158.44,158.38,0.85181542]
[1724498241897,15.0186,158.44,158.37,9.92749483]
[1724498243288,15.0186,158.44,158.38,45.0]
[1724498246784,15.0186,158.44,158.39,0.85165109]
[1724498247504,15.0186,158.44,158.38,45.0]
[1724498247685,15.0186,158.44,158.39,10.90443527]
[1724498247886,15.0186,158.44,158.4,45.0]
[1724498248083,15.0186,158.44,158.41,0.85147793]
[1724498248787,15.0186,158.44,158.41,10.65348276]
[1724498249908,15.0186,158.44,158.42,45.85102744]
[1724498250210,15.0186,158.44,158.42,45.0]
[1724498250507,6.4218,158.47,158.43,0.85104821]
[1724498259629,6.4218,158.47,158.42,45.0]
[1724498260027,6.4218,158.47,158.34,27.6911071]
[1724498260028,15.0144,158.45,158.36,0.85154634]
[1724498260335,15.0144,158.45,158.38,9.80200483]
[1724498260536,15.0144,158.45,158.39,0.85157489]
[1724498260911,15.0144,158.45,158.4,9.80200483]
[1724498261117,15.0144,158.45,158.41,0.85122102]
[1724498261922,15.0144,158.45,158.41,45.85122102]
[1724498264724,15.0144,158.45,158.38,9.80200483]
[1724498264925,15.0144,158.45,158.39,45.97705145]
[1724498265140,15.0144,158.45,158.4,3.58241185]
[1724498267015,15.0144,158.45,158.39,45.12549]
[1724498267614,15.0144,158.45,158.4,3.58265894]
[1724498268625,15.0144,158.45,158.4,4.43421412]
[1724498269555,15.0144,158.45,158.4,4.43421731]
[1724498269743,15.0144,158.45,158.41,3.58266213]
[1724498269926,15.0144,158.45,158.4,3.58266213]
[1724498270542,15.0144,158.45,158.41,3.58266213]
[1724498270733,15.0144,158.45,158.4,3.58266213]
[1724498270934,15.0144,158.45,158.41,3.58266213]
[1724498271240,15.0144,158.45,158.4,3.58266213]
[1724498271448,15.0144,158.45,158.41,3.58266213]
[1724498271634,15.0144,158.45,158.4,3.58266213]
[1724498271827,15.0144,158.45,158.41,3.58266213]
[1724498272035,15.0144,158.45,158.4,3.58266213]
[1724498272258,15.0144,158.45,158.41,3.58266213]
[1724498272451,15.0144,158.45,158.4,0.85156301]
[1724498272747,15.0144,158.45,158.41,3.58258137]
[1724498272945,15.0144,158.45,158.4,0.85156301]
[1724498273153,15.0144,158.45,158.41,3.58259547]
[1724498273449,15.0144,158.45,158.42,3.58265569]
[1724498273748,15.0144,158.45,158.39,45.12549]
[1724498273749,15.0144,158.45,158.4,3.58265569]
[1724498273943,15.0144,158.45,158.41,3.58265569]
[1724498274140,15.0144,158.45,158.42,3.58265569]
[1724498274345,15.0144,158.45,158.4,3.58265569]
[1724498274545,15.0144,158.45,158.41,3.58265569]
[1724498274742,15.0144,158.45,158.42,3.58265569]
[1724498274940,15.0144,158.45,158.39,45.12549]
[1724498275253,15.0144,158.45,158.4,3.58266119]
[1724498275433,15.0144,158.45,158.41,3.58266119]
[1724498275628,15.0144,158.45,158.42,3.58266119]
[1724498275845,15.0144,158.45,158.39,45.12549]
[1724498276030,15.0144,158.45,158.4,3.58264112]
[1724498276232,15.0144,158.45,158.41,3.58264112]
[1724498276429,15.0144,158.45,158.39,45.12549]
[1724498277156,15.0144,158.45,158.4,0.85156331]
[1724498279947,15.0144,158.45,158.4,10.65356814]
[1724498280145,15.0144,158.45,158.41,45.0]
[1724498283262,15.0144,158.45,158.41,45.85113545]
[1724498283569,15.0144,158.45,158.41,45.0]
[1724498283763,15.0144,158.45,158.41,45.85114053]
[1724498284274,15.0144,158.45,158.41,45.0]
[1724498284443,15.0144,158.45,158.41,45.8511368]
[1724498284846,15.0144,158.45,158.41,45.0]
[1724498288070,15.0144,158.45,158.42,4.7376344]
[1724498288372,15.0144,158.45,158.41,45.0]
[1724498290982,15.0144,158.45,158.39,0.25098]
[1724498291154,9.80200483,158.43,158.32,666.48638909]
[1724498291474,9.80200483,158.43,158.35,9.80200483]
[1724498292597,23.95114295,158.44,158.36,0.12549]
[1724498292752,22.373,158.44,158.36,45.25098]
[1724498292951,22.373,158.44,158.37,0.85183053]
[1724498293264,22.373,158.44,158.38,0.12549]
[1724498293464,22.373,158.44,158.38,45.97732045]
[1724498293675,22.373,158.44,158.39,45.0]
[1724498293882,22.373,158.44,158.4,0.85180039]
[1724498296589,16.0784,158.44,158.4,0.85180039]
[1724498298191,16.0784,158.48,158.41,10.05298483]
[1724498298367,16.0784,158.48,158.42,0.85068101]
[1724498298572,16.0784,158.48,158.42,45.85068101]
[1724498298775,16.0784,158.48,158.43,0.85068135]
[1724498301166,16.0784,158.48,158.42,45.0]
[1724498301370,16.0784,158.48,158.41,45.25098]
[1724498303286,16.0784,158.48,158.42,0.85068119]
[1724498310086,16.0784,158.48,158.43,0.25098]
[1724498310389,16.0784,158.48,158.43,0.85027905]
[1724498310582,16.0784,158.48,158.44,0.25098]
[1724498310783,16.0784,158.48,158.44,45.25098]
[1724498312494,16.0784,158.48,158.44,0.25098]
[1724498316420,16.0784,158.48,158.44,10.90326662]
[1724498316714,16.0784,158.48,158.46,9.80200483]
[1724498316922,16.6275,158.52,158.47,46.10085931]
[1724498317593,16.6275,158.52,158.48,9.80200483]
[1724498317918,16.6275,158.52,158.49,45.849276]
[1724498318208,16.6275,158.52,158.5,0.25098]
[1724498318511,16.6275,158.52,158.5,1.09998529]
[1724498318808,16.6275,158.52,158.5,10.90199012]
[1724498318995,16.6275,158.52,158.51,45.0]
[1724498319195,16.6275,158.52,158.51,45.25098]
[1724498320100,16.6275,158.52,158.51,45.0]
[1724498321209,16.6275,158.52,158.42,9.74830852]
[1724498321413,16.6275,158.52,158.44,9.80200483]
[1724498321711,16.6275,158.52,158.45,45.25098]
[1724498322423,18.20470487,158.52,158.42,8.6501187]
[1724498322720,34.3070097,158.52,158.43,9.80200483]
[1724498323098,32.72980483,158.52,158.43,9.80200483]
[1724498323820,1.57735404,158.51,158.42,6.14220852]
[1724498324005,22.9278,158.52,158.42,15.94421335]
[1724498324313,32.72980483,158.52,158.42,15.94421335]
[1724498324617,39.03810483,158.52,158.42,15.94421335]
[1724498325326,22.9278,158.52,158.44,9.80200483]
[1724498325493,22.9278,158.52,158.45,0.84981216]
[1724498325815,22.9278,158.52,158.46,1.10073923]
[1724498327797,22.9278,158.52,158.46,10.90274406]
[1724498327999,22.9278,158.52,158.47,45.0]
[1724498328213,22.9278,158.52,158.48,0.84967191]
[1724498329017,22.9278,158.52,158.48,10.6513384]
[1724498329317,22.9278,158.52,158.49,45.0]
[1724498329616,22.9278,158.52,158.5,0.84935001]